fUST/lending_fUST_20241008
["ID","MTS","AMOUNT","RATE_DAILY","PERIOD"]
[340007766,1728325847159,-52850.72,0.000247,14]
[340007767,1728325847169,-151.0,0.000247,7]
[340007768,1728325847179,-151.0,0.000247,7]
[340007769,1728325847189,-234.296477,0.000247,7]
[340007770,1728325847199,-243.436761,0.000247,7]
[340007771,1728325847209,-151.0,0.000247,7]
[340007772,1728325847218,-151.0,0.000247,7]
[340007773,1728325847227,-151.0,0.000247,7]
[340007774,1728325847237,-151.0,0.000247,7]
[340007775,1728325847247,-151.0,0.000247,7]
[340007776,1728325847259,-151.0,0.000247,7]
[340007777,1728325847268,-828.449004,0.000247,7]
[340007778,1728325847280,-828.449004,0.000247,7]
[340007779,1728325847290,-828.449004,0.000247,7]
[340007780,1728325847302,-828.449004,0.000247,7]
[340007781,1728325847314,-828.449004,0.000247,7]
[340007782,1728325847325,-828.449004,0.000247,7]
[340007783,1728325847336,-151.0,0.000247,7]
[340007784,1728325847346,-151.0,0.000247,7]
[340007785,1728325847355,-151.0,0.000247,7]
[340007786,1728325847365,-151.0,0.000247,7]
[340007787,1728325847375,-153.082486,0.000247,7]
[340007788,1728325847385,-151.0,0.000247,7]
[340007789,1728325847395,-151.0,0.000247,7]
[340007790,1728325847407,-151.0,0.000247,7]
[340007791,1728325847417,-153.690846,0.000247,7]
[340007792,1728325847601,-153.690846,0.000247,7]
[340007793,1728325847613,-153.690846,0.000247,7]
[340007794,1728325847624,-153.690846,0.000247,7]
[340007795,1728325847635,-153.690846,0.000247,7]
[340007796,1728325847645,-153.690846,0.000247,7]
[340007797,1728325847659,-541.345702,0.000247,7]
[340007798,1728325847670,-541.345702,0.000247,7]
[340007799,1728325847683,-541.345702,0.000247,7]
[340007800,1728325847694,-541.345702,0.000247,7]
[340007801,1728325847705,-541.345702,0.000247,7]
[340007802,1728325847717,-541.345702,0.000247,7]
[340007803,1728325847728,-162.768619,0.000247,7]
[340007804,1728325847739,-162.768619,0.000247,7]
[340007805,1728325847752,-162.768619,0.000247,7]
[340007806,1728325847762,-162.768619,0.000247,7]
[340007807,1728325847773,-162.768619,0.000247,7]
[340007808,1728325847784,-162.768619,0.000247,7]
[340007809,1728325847794,-151.0,0.000247,7]
[340007810,1728325847808,-151.0,0.000247,7]
[340007811,1728325847817,-306.71728,0.000247,7]
[340007812,1728325847827,-306.71728,0.000247,7]
[340007813,1728325847836,-306.71728,0.000247,7]
[340007814,1728325847847,-306.71728,0.000247,7]
[340007815,1728325847857,-306.71728,0.000247,7]
[340007816,1728325847868,-306.71728,0.000247,7]
[340007817,1728325847880,-151.0,0.000247,7]
[340007818,1728325847891,-151.0,0.000247,7]
[340007819,1728325847904,-151.0,0.000247,7]
[340007820,1728325847916,-196.63934,0.000247,7]
[340007821,1728325847926,-199.989524,0.000247,7]
[340007822,1728325847936,-1543.402199,0.000247,7]
[340007823,1728325847945,-1543.402199,0.000247,7]
[340007824,1728325847957,-1543.402199,0.000247,7]
[340007825,1728325847968,-1543.402199,0.000247,7]
[340007826,1728325847977,-1543.402199,0.000247,7]
[340007827,1728325847987,-1543.402199,0.000247,7]
[340007828,1728325847999,-500.0,0.00024884,2]
[340007829,1728325848009,-150.112237,0.000249,3]
[340007830,1728325848020,-13901.2031988,0.00024981,3]
[340007831,1728325848031,-151.0,0.00024981,7]
[340007832,1728325848042,-1543.402199,0.00024981,7]
[340007833,1728325848052,-1543.402199,0.00024981,7]
[340007834,1728325848061,-151.0,0.0002499,7]
[340007835,1728325848071,-151.0,0.0002499,7]
[340007836,1728325848081,-828.449004,0.0002499,7]
[340007837,1728325848090,-828.449004,0.0002499,7]
[340007838,1728325848100,-151.0,0.0002499,7]
[340007839,1728325848110,-201.088198,0.00024991,7]
[340007840,1728325848120,-153.690846,0.00024991,7]
[340007841,1728325848131,-153.690846,0.00024991,7]
[340007842,1728325848140,-541.345702,0.00024991,7]
[340007843,1728325848151,-541.345702,0.00024991,7]
[340007844,1728325848170,-162.768619,0.00024991,7]
[340007845,1728325848181,-162.768619,0.00024991,7]
[340007846,1728325848191,-306.71728,0.00024991,7]
[340007847,1728325848200,-306.71728,0.00024991,7]
[340007848,1728325848210,-161.046,0.00024999,2]
[340007849,1728325848219,-1000.5,0.00025,31]
[340007850,1728325848229,-1020.5,0.00025,31]
[340007851,1728325848239,-150.0,0.00025,2]
[340007852,1728325848249,-470.0,0.00025,30]
[340007853,1728325848259,-1034.31058007,0.00025,2]
[340007854,1728325848269,-202.27649952,0.00025,2]
[340007855,1728325848279,-164.55644786,0.00025,2]
[340007856,1728325848289,-507.01850775,0.00025,2]
[340007857,1728325848299,-344.71812984,0.00025,2]
[340007858,1728325848308,-823.07722083,0.00025,2]
[340007859,1728325848318,-160.0,0.00025,2]
[340007860,1728325848328,-1000.0,0.00025,120]
[340007861,1728325848338,-150.112233,0.00025,4]
[340007862,1728325848349,-500.0,0.00025001,30]
[340007863,1728325848360,-500.0,0.00025001,30]
[340007864,1728325848370,-500.0,0.00025001,30]
[340007865,1728325848380,-500.0,0.00025001,30]
[340007866,1728325848390,-596.12156929,0.00025001,30]
[340007867,1728325848405,-507.73268882,0.00025001,30]
[340007868,1728325848415,-520.55366898,0.00025001,30]
[340007869,1728325848426,-500.0,0.00025001,30]
[340007870,1728325848436,-500.0,0.00025001,30]
[340007871,1728325848446,-500.0,0.00025001,30]
[340007872,1728325848458,-500.0,0.00025001,30]
[340007873,1728325848467,-500.0,0.00025001,30]
[340007874,1728325848477,-500.0,0.00025001,30]
[340007875,1728325848487,-500.0,0.00025001,30]
[340007876,1728325848498,-500.0,0.00025001,30]
[340007877,1728325848508,-500.0,0.00025001,30]
[340007878,1728325848518,-500.0,0.00025001,30]
[340007879,1728325848528,-500.0,0.00025001,30]
[340007880,1728325848538,-500.0,0.00025001,30]
[340007881,1728325848548,-511.35319255,0.00025001,30]
[340007882,1728325848559,-500.0,0.00025001,30]
[340007883,1728325848570,-500.0,0.00025001,30]
[340007884,1728325848580,-500.0,0.00025001,30]
[340007885,1728325848590,-500.0,0.00025001,30]
[340007886,1728325848600,-500.0,0.00025001,30]
[340007887,1728325848612,-151.0,0.00025001,7]
[340007888,1728325848624,-277.307133,0.00025001,7]
[340007889,1728325848635,-828.449004,0.00025001,7]
[340007890,1728325848644,-828.449004,0.00025001,7]
[340007891,1728325848656,-151.0,0.00025001,7]
[340007892,1728325848666,-456.0,0.00025001,14]
[340007893,1728325848677,-150.0,0.00025001,14]
[340007894,1728325848686,-500.0,0.00025001,14]
[340007895,1728325848697,-150.112233,0.000252,5]
[340007896,1728325848707,-153.0,0.00025326,2]
[340007897,1728325848718,-153.0,0.00025326,2]
[340007898,1728325848727,-153.0,0.00025326,2]
[340007899,1728325848738,-150.112233,0.000255,10]
[340007900,1728325848749,-456.0,0.00025549,14]
[340007901,1728325848759,-150.0,0.00025549,14]
[340007902,1728325848769,-695.82395335,0.00025549,14]
[340007903,1728325848779,-420.0,0.0002567,2]
[340007904,1728325848789,-150.112233,0.000257,5]
[340007905,1728325848799,-525.20436442,0.00026,2]
[340007906,1728325848812,-330.30137514,0.00026,5]
[340007907,1728325848821,-1000.0,0.00026,120]
[340007908,1728325848831,-150.112233,0.00026,9]
[340007909,1728325848843,-151.0,0.00026017,7]
[340007910,1728325848852,-1543.402199,0.00026017,7]
[340007911,1728325848865,-1543.402199,0.00026017,7]
[340007912,1728325848875,-420.0,0.0002603,2]
[340007913,1728325848884,-1010.88,0.0002604,3]
[340007914,1728325848894,-828.449004,0.00026042,7]
[340007915,1728325848906,-828.449004,0.00026042,7]
[340007916,1728325848916,-151.0,0.00026042,7]
[340007917,1728325848925,-541.345702,0.00026042,7]
[340007918,1728325848934,-541.345702,0.00026042,7]
[340007919,1728325848944,-162.768619,0.00026042,7]
[340007920,1728325848954,-162.768619,0.00026042,7]
[340007921,1728325848963,-306.71728,0.00026042,7]
[340007922,1728325848973,-306.71728,0.00026042,7]
[340007923,1728325848983,-1000.0,0.00026042,2]
[340007924,1728325848993,-1000.0,0.00026042,2]
[340007925,1728325849003,-151.0,0.00026088,7]
[340007926,1728325849012,-500.33419,0.00026088,7]
[340007927,1728325849022,-153.690846,0.00026088,7]
[340007928,1728325849031,-153.690846,0.00026088,7]
[340007929,1728325849041,-456.0,0.00026097,14]
[340007930,1728325849050,-150.0,0.00026097,14]
[340007931,1728325849060,-150.112233,0.000262,9]
[340007932,1728325849071,-507.43152012,0.00026254,2]
[340007933,1728325849080,-186.536715,0.000263,5]
[340007934,1728325849090,-13901.2031988,0.00026497,4]
[340007935,1728325849100,-150.112233,0.000265,9]
[340007936,1728325849110,-150.112233,0.000265,9]
[340007937,1728325849119,-456.0,0.00026645,14]
[340007938,1728325849130,-215.6528,0.00026645,14]
[340007939,1728325849140,-248.2,0.000267,2]
[340007940,1728325849150,-248.2,0.000267,2]
[340007941,1728325849162,-153.0,0.00026763,2]
[340007942,1728325849171,-153.0,0.00026763,2]
[340007943,1728325849181,-153.0,0.00026763,2]
[340007944,1728325849192,-153.0,0.00026763,2]
[340007945,1728325849202,-1500.0,0.000268,2]
[340007946,1728325849212,-150.112233,0.000268,8]
[340007947,1728325849224,-150.112233,0.000268,7]
[340007948,1728325849234,-470.47146592,0.00026858,2]
[340007949,1728325849246,-1500.0,0.00026941,2]
[340007950,1728325849256,-1000.0,0.00027,120]
[340007951,1728325849266,-150.112233,0.00027,8]
[340007952,1728325849276,-150.112233,0.00027,6]
[340007953,1728325849288,-1500.0,0.00027081,2]
[340007954,1728325849298,-456.0,0.00027193,14]
[340007955,1728325849308,-1500.0,0.00027222,2]
[340007956,1728325849317,-151.0,0.00027272,7]
[340007957,1728325849327,-1543.402199,0.00027272,7]
[340007958,1728325849338,-1543.4022,0.00027272,7]
[340007959,1728325849347,-500.0,0.00027273,2]
[340007960,1728325849356,-151.8556692,0.00027273,2]
[340007961,1728325849368,-297.38658726,0.00027273,2]
[340007962,1728325849378,-500.0,0.00027273,2]
[340007963,1728325849390,-500.0,0.00027273,2]
[340007964,1728325849400,-500.0,0.00027273,2]
[340007965,1728325849415,-500.0,0.00027273,2]
[340007966,1728325849425,-500.0,0.00027273,2]
[340007967,1728325849435,-500.0,0.00027273,2]
[340007968,1728325849445,-508.05509358,0.00027273,2]
[340007969,1728325849456,-500.0,0.00027273,2]
[340007970,1728325849466,-500.0,0.00027273,2]
[340007971,1728325849476,-150.44841128,0.00027273,2]
[340007972,1728325849486,-500.0,0.00027273,2]
[340007973,1728325849496,-828.449004,0.0002728,7]
[340007974,1728325849506,-828.449013,0.0002728,7]
[340007975,1728325849515,-151.0,0.0002728,7]
[340007976,1728325849524,-160.0,0.00027299,2]
[340007977,1728325849534,-566.57,0.00027299,2]
[340007978,1728325849544,-566.57,0.00027299,2]
[340007979,1728325849553,-566.57,0.00027299,2]
[340007980,1728325849563,-566.57,0.00027299,2]
[340007981,1728325849573,-566.57,0.00027299,2]
[340007982,1728325849584,-566.57,0.00027299,2]
[340007983,1728325849594,-566.57,0.00027299,2]
[340007984,1728325849604,-566.57,0.00027299,2]
[340007985,1728325849615,-566.57,0.00027299,2]
[340007986,1728325849626,-566.57,0.00027299,2]
[340007987,1728325849637,-166573.24037418,0.000273,14]
[340007988,1728325850037,-616.0,0.000273,14]
[340007990,1728326835141,-161.310362,0.00018,2]
[340007991,1728326835166,-61.39173697,0.00023172,2]
[340007992,1728326848142,-125.23553203,0.00023172,2]
[340007993,1728326848167,-186.627269,0.00023236,2]
[340007994,1728326848189,-421.73353234,0.00023253,2]
[340007995,1728326848217,-186.627269,0.00023299,2]
[340007996,1728326848244,-254.082488,0.00023353,2]
[340007997,1728326848267,-199.450955,0.00023353,2]
[340007998,1728326848291,-186.627269,0.00023363,2]
[340007999,1728326848313,-138.46681673,0.00023426,2]
[340008002,1728326949305,-1460.28840996,0.000178,2]
[340008003,1728326949326,-365.08221267,0.000179,2]
[340008004,1728326961266,500.0,0.000218,2]
[340008008,1728326988527,154.0,0.00022,120]
[340008009,1728327029102,1218.57079337,0.00022,7]
[340008047,1728327032524,-300.0,0.00022974,2]
[340008049,1728327032533,-300.0,0.00022974,2]
[340008051,1728327032543,-404.25000015,0.00022975,2]
[340008054,1728327032554,-2112.99295383,0.00022975,2]
[340008063,1728327032642,-2336.9156238,0.00022975,2]
[340008067,1728327032665,-5483.82677558,0.00022975,2]
[340008069,1728327032676,-10435.22195,0.00022975,2]
[340008072,1728327032688,-466.64181943,0.00022975,2]
[340008074,1728327032699,-325.0,0.00022975,2]
[340008191,1728327038722,-1437.35411086,0.00022975,2]
[340008192,1728327038735,-1897.79676635,0.00022975,2]
[340008193,1728327038745,-48.16045227,0.00023426,2]
[340008194,1728327038755,-186.627269,0.0002349,2]
[340008195,1728327038766,-186.627269,0.00023554,2]
[340008197,1728327038775,-171.617925,0.00023576,2]
[340008199,1728327038786,-171.617925,0.00023599,2]
[340008201,1728327038796,-186.627269,0.00023617,2]
[340008202,1728327038806,-171.617925,0.00023623,2]
[340008204,1728327038816,-254.082488,0.00023645,2]
[340008206,1728327038826,-744.27471542,0.00023645,2]
[340008208,1728327038836,-171.617925,0.00023647,2]
[340008209,1728327038846,-171.617925,0.0002367,2]
[340008211,1728327038857,-186.627269,0.00023681,2]
[340008212,1728327038867,-171.617925,0.00023694,2]
[340008213,1728327038878,-186.627269,0.00023744,2]
[340008215,1728327038888,-186.627269,0.00023808,2]
[340008217,1728327038898,-186.627269,0.00023871,2]
[340008218,1728327038908,-186.627269,0.00023935,2]
[340008219,1728327038919,-254.082488,0.00023936,2]
[340008220,1728327038929,-186.627269,0.00023999,2]
[340008221,1728327038940,-186.627269,0.00024062,2]
[340008222,1728327038950,-186.627269,0.00024126,2]
[340008223,1728327038960,-705.9726898,0.0002418,2]
[340008224,1728327038970,-186.627269,0.00024189,2]
[340008225,1728327038980,-254.082488,0.00024228,2]
[340008226,1728327038990,-186.627269,0.00024253,2]
[340008227,1728327039000,-164.668344,0.00024278,2]
[340008228,1728327039010,-186.627269,0.00024316,2]
[340008229,1728327039020,-186.627269,0.0002438,2]
[340008230,1728327039031,-199.450955,0.0002452,2]
[340008231,1728327039040,-254.082488,0.0002452,2]
[340008232,1728327039050,-161.310362,0.0002461,2]
[340008233,1728327039059,-371.0,0.00024932,2]
[340008234,1728327039069,-173.0,0.00024932,2]
[340008235,1728327039079,-420.0,0.0002494,2]
[340008236,1728327039089,-371.0,0.00025,2]
[340008237,1728327039098,-150.0,0.00025,2]
[340008238,1728327039123,-173.0,0.00025,2]
[340008239,1728327039142,-190.0,0.00025001,30]
[340008240,1728327039157,-420.0,0.00025271,2]
[340008241,1728327039175,-371.0,0.0002589,2]
[340008242,1728327039194,-173.0,0.0002589,2]
[340008243,1728327039212,-306.0,0.00026329,2]
[340008244,1728327039229,-830.6183517,0.00026466,2]
[340008245,1728327039245,-306.0,0.00026658,2]
[340008246,1728327039263,-248.2,0.000267,2]
[340008247,1728327039279,-248.2,0.000267,2]
[340008248,1728327039295,-1500.0,0.000268,2]
[340008249,1728327039308,-394.38451,0.00026957,2]
[340008250,1728327039323,-1500.0,0.00026958,2]
[340008251,1728327039340,-1000.0,0.00027,120]
[340008252,1728327039357,-587.0,0.00027075,2]
[340008253,1728327039375,-1500.0,0.00027115,2]
[340008254,1728327039390,-365.77,0.0002714,3]
[340008255,1728327039403,-182.88,0.0002714,3]
[340008256,1728327039419,-731.54,0.0002715,3]
[340008257,1728327039434,-10543.7459828,0.0002716,4]
[340008258,1728327039447,-5560.48127952,0.0002716,4]
[340008259,1728327039463,-292.61,0.0002717,3]
[340008260,1728327039478,-5271.87299138,0.0002718,4]
[340008261,1728327039492,-2780.24063976,0.0002718,4]
[340008262,1728327039504,-378.0,0.00027185,2]
[340008263,1728327039522,-174.0,0.00027185,2]
[340008264,1728327039535,-175.3849005,0.00027189,2]
[340008265,1728327039550,-500.0,0.00027189,2]
[340008266,1728327039564,-441.06722732,0.00027189,2]
[340008267,1728327039579,-10543.7459828,0.0002719,4]
[340008268,1728327039592,-5560.48127952,0.0002719,4]
[340008269,1728327039608,-548.68,0.0002719,3]
[340008270,1728327039624,-35345.95,0.0002719,10]
[340008271,1728327039637,-112260.61655308,0.000272,2]
[340008272,1728327039650,-607.97523472,0.00027273,2]
[340008273,1728327039663,-500.0,0.00027273,2]
[340008274,1728327039676,-200.00773727,0.00027273,2]
[340008275,1728327039690,-500.0,0.00027273,2]
[340008276,1728327039703,-500.0,0.00027273,2]
[340008277,1728327039715,-500.0,0.00027273,2]
[340008278,1728327039729,-500.0,0.00027273,2]
[340008279,1728327039742,-500.98284493,0.00027273,2]
[340008280,1728327039755,-1500.0,0.00027273,2]
[340008281,1728327039769,-5271.87299138,0.0002728,4]
[340008282,1728327039782,-2780.24063976,0.0002728,4]
[340008283,1728327039796,-15815.6189741,0.0002729,4]
[340008284,1728327039808,-8340.72191928,0.0002729,4]
[340008285,1728327039821,-210.36207045,0.00027298,2]
[340008286,1728327039834,-500.0,0.00027299,2]
[340008287,1728327039846,-510.08071025,0.00027299,2]
[340008288,1728327039861,-500.0,0.00027299,2]
[340008289,1728327039874,-425.35848081,0.00027299,2]
[340008290,1728327039887,-500.0,0.00027299,2]
[340008291,1728327039900,-500.0,0.00027299,2]
[340008292,1728327039913,-297.89586635,0.00027299,2]
[340008293,1728327039926,-500.0,0.00027299,2]
[340008294,1728327039939,-500.0,0.00027299,2]
[340008295,1728327039952,-500.0,0.00027299,2]
[340008296,1728327039965,-500.0,0.00027299,2]
[340008299,1728327039978,-500.0,0.00027299,2]
[340008300,1728327039991,-134160.69962582,0.000273,14]
[340008302,1728327040004,-3843.02,0.000273,14]
[340008304,1728327040017,-448.29,0.000273,7]
[340008305,1728327040030,-151.0,0.000273,7]
[340008306,1728327040043,-152.451266,0.000273,7]
[340008307,1728327040057,-209.7631842,0.00027397,2]
[340008308,1728327040071,-151.0,0.00027397,2]
[340008309,1728327040084,-1500.0,0.0002743,2]
[340008310,1728327040097,-153.323223,0.00027534,2]
[340008311,1728327040112,-306.0,0.00027534,2]
[340008313,1728327040125,-1500.0,0.00027588,2]
[340008314,1728327040138,-300.0,0.000277,2]
[340008315,1728327040151,-300.0,0.000277,2]
[340008316,1728327040165,-1000.0,0.00027712,2]
[340008317,1728327040179,-1500.0,0.00027745,2]
[340008318,1728327040192,-587.0,0.00027799,2]
[340008319,1728327040206,-1500.0,0.00027903,2]
[340008320,1728327040220,-292.48877965,0.0002799,60]
[340008321,1728327040233,-170.18082919,0.00028,120]
[340008322,1728327040247,-1500.0,0.00028061,2]
[340008323,1728327040261,-1500.0,0.00028218,2]
[340008324,1728327040275,-1500.0,0.00028376,2]
[340008325,1728327040289,-1787.50649792,0.00028438,2]
[340008326,1728327040303,-1000.0,0.000285,2]
[340008327,1728327040317,-731.54,0.0002851,3]
[340008328,1728327040329,-365.76,0.0002851,3]
[340008329,1728327040339,-1463.08,0.0002852,3]
[340008330,1728327040349,-5271.87299138,0.00028523,4]
[340008331,1728327040361,-2780.24063976,0.00028523,4]
[340008332,1728327040371,-1500.0,0.00028533,2]
[340008334,1728327040381,-153.0,0.00028548,2]
[340008335,1728327040390,-500.0,0.00028633,2]
[340008342,1728327040604,-1129.16461442,0.00028642,5]
[340008343,1728327040629,-301.41128147,0.00028642,5]
[340008344,1728327040638,-501.65268604,0.00028642,5]
[340008345,1728327040648,-675.90092739,0.00028642,5]
[340008346,1728327040657,-1000.0,0.00028642,5]
[340008347,1728327040667,-1500.0,0.00028691,2]
[340008348,1728327040676,-300.0,0.000287,2]
[340008349,1728327040686,-300.0,0.000287,2]
[340008350,1728327040695,-3843.02,0.000287,14]
[340008351,1728327040704,-448.29,0.000287,7]
[340008352,1728327040713,-701.85528462,0.00028848,2]
[340008353,1728327041164,-798.14471538,0.00028848,2]
[340008354,1728327041174,-500.0,0.00028896,5]
[340008355,1728327041183,-371.0,0.00028997,2]
[340008356,1728327041192,-1000.0,0.00029,120]
[340008357,1728327041202,-855.47607029,0.00029,2]
[340008358,1728327041211,-339.0,0.00029,2]
[340008359,1728327041220,-1500.0,0.00029006,2]
[340008360,1728327041229,-339.0,0.00029041,2]
[340008361,1728327041238,-209.5952082,0.00029096,2]
[340008362,1728327041248,-153.0,0.00029096,2]
[340008363,1728327041257,-153.0,0.00029096,2]
[340008364,1728327041267,-153.0,0.00029096,2]
[340008365,1728327041276,-153.0,0.00029096,2]
[340008366,1728327041285,-153.0,0.00029096,2]
[340008367,1728327041295,-267.54108002,0.00029164,2]
[340008368,1728327041306,-1232.45891998,0.00029164,2]
[340008369,1728327041316,-500.0,0.00029181,2]
[340008370,1728327041326,-1500.0,0.00029321,2]
[340008371,1728327041335,-823.0,0.00029392,2]
[340008372,1728327041345,-500.0,0.00029436,5]
[340008373,1728327041357,-5205.1839094,0.00029469,4]
[340008374,1728327041554,-66.68908198,0.00029469,4]
[340008375,1728327041564,-2780.24063976,0.00029469,4]
[340008376,1728327041574,-500.0,0.00029473,5]
[340008377,1728327041584,-1500.0,0.00029479,2]
[340008378,1728327041593,-151.0,0.0002948,7]
[340008379,1728327041602,-151.0,0.0002948,7]
[340008380,1728327041624,-151.0,0.0002948,7]
[340008381,1728327041634,-151.0,0.0002948,7]
[340008382,1728327041643,-151.0,0.0002948,7]
[340008383,1728327041652,-151.0,0.0002948,7]
[340008384,1728327041661,-151.0,0.0002948,7]
[340008385,1728327041671,-475.317481,0.0002948,7]
[340008386,1728327041681,-1770.80475124,0.0002948,4]
[340008387,1728327041693,-8772.94123156,0.0002948,4]
[340008388,1728327041702,-5560.48127952,0.0002948,4]
[340008389,1728327041712,-151.90778,0.0002949,7]
[340008390,1728327041721,-151.0,0.0002949,2]
[340008391,1728327041731,-156.381686,0.0002949,7]
[340008392,1728327041740,-151.0,0.0002949,7]
[340008393,1728327041749,-1716.09279962,0.0002949,4]
[340008394,1728327041764,-615.91,0.0002949,4]
[340008442,1728327043485,-475.317481,0.0002948,7]
[340008443,1728327043496,-1974.68251898,0.0002949,4]
[340008445,1728327043510,-1616.47240693,0.0002949,4]
[340008447,1728327043521,-306.24798982,0.0002949,4]
[340008449,1728327043533,-8920.30946204,0.0002949,4]
[340008452,1728327045367,161.064219,0.00018,2]
[340008495,1728327046482,-161.064219,0.0002461,2]
[340008497,1728327046495,-3292.56034421,0.0002949,4]
[340008500,1728327046508,-1019.4089567,0.0002949,4]
[340008502,1728327046518,-151.0,0.0002949,7]
[340008504,1728327046528,-530.68,0.0002949,3]
[340008506,1728327046538,-1675.25759254,0.000295,14]
[340008509,1728327046565,-2173.30310994,0.000295,14]
[340008511,1728327046721,-714.27373382,0.000295,14]
[340008512,1728327046737,-1257.4,0.000295,14]
[340008521,1728327996140,-168.175683,0.00018,2]
[340008522,1728327996167,-168.175683,0.00024262,2]
[340008523,1728327996190,-159.534834,0.00024518,2]
[340008524,1728327996214,-589.569309,0.0002477,2]
[340008525,1728327996237,-250.0,0.00025156,2]
[340008526,1728327996259,-213.815686,0.00025191,2]
[340008527,1728327996281,-250.0,0.00025225,2]
[340008528,1728327996302,-250.0,0.00025294,2]
[340008529,1728327996323,-250.0,0.00025363,2]
[340008530,1728327996344,-250.0,0.00025432,2]
[340008531,1728327996365,-250.0,0.00025501,2]
[340008532,1728327996386,-601.8794918,0.00025544,2]
[340008533,1728327996407,-250.0,0.0002557,2]
[340008534,1728327996429,-1572.9109774,0.0002557,2]
[340008535,1728327996450,-250.0,0.00025639,2]
[340008536,1728327996471,-250.0,0.00025708,2]
[340008537,1728327996492,-250.0,0.00025777,2]
[340008538,1728327996513,-250.0,0.00025846,2]
[340008539,1728327996534,-250.0,0.00025915,2]
[340008540,1728327996558,-250.0,0.00025984,2]
[340008541,1728327996582,-250.0,0.00026053,2]
[340008542,1728327996605,-250.0,0.00026122,2]
[340008543,1728327996629,-250.0,0.00026191,2]
[340008544,1728327996652,-250.0,0.0002626,2]
[340008545,1728327996673,-300.0,0.0002626,2]
[340008546,1728327996696,-300.0,0.0002626,2]
[340008547,1728327996720,-46.1565408,0.00026329,2]
[340008549,1728328039196,-203.8434592,0.00026329,2]
[340008550,1728328039219,-69.87014278,0.00026329,2]
[340008558,1728328178891,159.440377,0.00018,2]
[340008568,1728328232813,-159.440377,0.00024262,2]
[340008569,1728328232835,-2334.376968,0.0002484,2]
[340008570,1728328232846,-166.666666,0.00025083,2]
[340008571,1728328232857,-150.0,0.00025256,2]
[340008572,1728328232868,-300.0,0.00025492,2]
[340008573,1728328232879,-300.0,0.00025492,2]
[340008574,1728328232890,-1965.39500596,0.00025493,2]
[340008575,1728328232903,-6276.19999999,0.00025493,2]
[340008576,1728328232915,-809.97140976,0.00025493,2]
[340008577,1728328232938,-2230.05556309,0.00025493,2]
[340008578,1728328232951,-2334.376968,0.00025525,2]
[340008579,1728328232962,-812.38052892,0.00026057,14]
[340008580,1728328232973,-5088.4075906,0.00026057,2]
[340008612,1728328238745,-1500.0,0.00026057,2]
[340008699,1728328240716,-150.0,0.00026057,2]
[340008701,1728328240726,-510.08,0.00026057,2]
[340008705,1728328240763,-17801.5124094,0.00026057,2]
[340008707,1728328240773,-8210.31482172,0.0002611,2]
[340008709,1728328240784,-2334.376968,0.0002621,2]
[340008711,1728328240794,-200.0,0.0002632,4]
[340008714,1728328240804,-250.0,0.00026398,2]
[340008716,1728328240813,-250.0,0.00026467,2]
[340008718,1728328240824,-248.2,0.000267,2]
[340008720,1728328240834,-1500.0,0.000268,2]
[340008722,1728328240844,-159.535733,0.00026987,2]